Workbook

Sheet 術後期間別
D2: Time since surgery
D3: <1 year | F3: 1-5 years | H3: >5 years
D4: n | E4: (%) | F4: n | G4: (%) | H4: n | I4: (%)
D5: 138 | F5: 222 | H5: 165 | J5: p-value
A6: 1. Vasomotor symptoms | B6: 1. Hot flushes | C6: Severe (3) | D6: 25 | E6: =D6/1.38 -> 18 | F6: 6 | G6: =F6/2.22 -> 3 | H6: 6 | I6: =H6/1.65 -> 4 | J6: 3e-05
C7: Moderate (2) | D7: 22 | E7: =D7/1.38 -> 16 | F7: 46 | G7: =F7/2.22 -> 21 | H7: 15 | I7: =H7/1.65 -> 9
C8: Mild (1) | D8: 45 | E8: 33 | F8: 82 | G8: 37 | H8: 59 | I8: 36
C9: None (0) | D9: 46 | E9: 33 | F9: 88 | G9: 40 | H9: 85 | I9: 52
C10: No data | D10: 0 | E10: 0 | F10: 0 | G10: 0 | H10: 0 | I10: 0
B11: 2. Sweats | C11: Severe (3) | D11: 26 | E11: 19 | F11: 19 | G11: 9 | H11: 11 | I11: 7 | J11: 0.00263
C12: Moderate (2) | D12: 32 | E12: 23 | F12: 46 | G12: 21 | H12: 35 | I12: 21
C13: Mild (1) | D13: 44 | E13: 32 | F13: 78 | G13: 35 | H13: 54 | I13: 33
C14: None (0) | D14: 36 | E14: 26 | F14: 79 | G14: 36 | H14: 65 | I14: 39
C15: No data | D15: 0 | E15: 0 | F15: 0 | G15: 0 | H15: 0 | I15: 0
B16: 3. Cold constitution | C16: Severe (3) | D16: 8 | E16: 6 | F16: 13 | G16: 6 | H16: 9 | I16: 5 | J16: 0.42046
C17: Moderate (2) | D17: 27 | E17: 20 | F17: 34 | G17: 15 | H17: 31 | I17: 19
C18: Mild (1) | D18: 53 | E18: 38 | F18: 79 | G18: 36 | H18: 59 | I18: 36
C19: None (0) | D19: 50 | E19: 36 | F19: 96 | G19: 43 | H19: 66 | I19: 40
C20: No data | D20: 0 | E20: 0 | F20: 0 | G20: 0 | H20: 0 | I20: 0
B21: 4. Shortness of breath | C21: Severe (3) | D21: 3 | E21: 2 | F21: 5 | G21: 2 | H21: 7 | I21: 4 | J21: 0.09556
C22: Moderate (2) | D22: 13 | E22: 9 | F22: 15 | G22: 7 | H22: 9 | I22: 5
C23: Mild (1) | D23: 52 | E23: 38 | F23: 65 | G23: 29 | H23: 46 | I23: 28
C24: None (0) | D24: 70 | E24: 51 | F24: 136 | G24: 61 | H24: 103 | I24: 62
C25: No data | D25: 0 | E25: 0 | F25: 1 | G25: 0 | H25: 0 | I25: 0
A26: 2. Dorsolumbar pain | B26: 5. Lumbago | C26: Severe (3) | D26: 11 | E26: 8 | F26: 15 | G26: 7 | H26: 7 | I26: 4 | J26: 0.00432
C27: Moderate (2) | D27: 30 | E27: 22 | F27: 29 | G27: 13 | H27: 19 | I27: 12
C28: Mild (1) | D28: 51 | E28: 37 | F28: 82 | G28: 37 | H28: 58 | I28: 35
C29: None (0) | D29: 46 | E29: 33 | F29: 96 | G29: 43 | H29: 81 | I29: 49
C30: No data | D30: 0 | E30: 0 | F30: 0 | G30: 0 | H30: 0 | I30: 0
B31: 6. Back pain | C31: Severe (3) | D31: 5 | E31: 4 | F31: 7 | G31: 3 | H31: 4 | I31: 2 | J31: 0.02685
C32: Moderate (2) | D32: 17 | E32: 12 | F32: 18 | G32: 8 | H32: 11 | I32: 7
C33: Mild (1) | D33: 35 | E33: 25 | F33: 57 | G33: 26 | H33: 30 | I33: 18
C34: None (0) | D34: 81 | E34: 59 | F34: 139 | G34: 63 | H34: 120 | I34: 73
C35: No data | D35: 0 | E35: 0 | F35: 1 | G35: 0 | H35: 0 | I35: 0
A36: 3. Arthralgia and myalgia | B36: 7. Shoulder stiffness | C36: Severe (3) | D36: 25 | E36: 18 | F36: 30 | G36: 14 | H36: 17 | I36: 10 | J36: 0.00099
C37: Moderate (2) | D37: 41 | E37: 30 | F37: 61 | G37: 27 | H37: 28 | I37: 17
C38: Mild (1) | D38: 48 | E38: 35 | F38: 85 | G38: 38 | H38: 73 | I38: 44
C39: None (0) | D39: 24 | E39: 17 | F39: 46 | G39: 21 | H39: 47 | I39: 28
C40: No data | D40: 0 | E40: 0 | F40: 0 | G40: 0 | H40: 0 | I40: 0
B41: 8. Joint pain | C41: Severe (3) | D41: 10 | E41: 7 | F41: 19 | G41: 9 | H41: 8 | I41: 5 | J41: 0.00788
C42: Moderate (2) | D42: 27 | E42: 20 | F42: 31 | G42: 14 | H42: 13 | I42: 8
C43: Mild (1) | D43: 33 | E43: 24 | F43: 57 | G43: 26 | H43: 40 | I43: 24
C44: None (0) | D44: 67 | E44: 49 | F44: 114 | G44: 51 | H44: 104 | I44: 63
C45: No data | D45: 1 | E45: 1 | F45: 1 | G45: 0 | H45: 0 | I45: 0
A46: 4. General fatigue | B46: 9. General fatigue | C46: Severe (3) | D46: 24 | E46: 17 | F46: 22 | G46: 10 | H46: 15 | I46: 9 | J46: 0.00043
C47: Moderate (2) | D47: 36 | E47: 26 | F47: 49 | G47: 22 | H47: 27 | I47: 16
C48: Mild (1) | D48: 56 | E48: 41 | F48: 98 | G48: 44 | H48: 71 | I48: 43
C49: None (0) | D49: 22 | E49: 16 | F49: 53 | G49: 24 | H49: 52 | I49: 32
C50: No data | D50: 0 | E50: 0 | F50: 0 | G50: 0 | H50: 0 | I50: 0
A51: 5. Nervousness | B51: 10. Readily excitable | C51: Severe (3) | D51: 6 | E51: 4 | F51: 8 | G51: 4 | H51: 6 | I51: 4 | J51: 0.23492
C52: Moderate (2) | D52: 7 | E52: 5 | F52: 14 | G52: 6 | H52: 8 | I52: 5
C53: Mild (1) | D53: 41 | E53: 30 | F53: 58 | G53: 26 | H53: 35 | I53: 21
C54: None (0) | D54: 83 | E54: 60 | F54: 142 | G54: 64 | H54: 116 | I54: 70
C55: No data | D55: 1 | E55: 1 | F55: 0 | G55: 0 | H55: 0 | I55: 0
B56: 11. Irritability | C56: Severe (3) | D56: 10 | E56: 7 | F56: 10 | G56: 5 | H56: 9 | I56: 5 | J56: 0.00369
C57: Moderate (2) | D57: 21 | E57: 15 | F57: 22 | G57: 10 | H57: 10 | I57: 6
C58: Mild (1) | D58: 55 | E58: 40 | F58: 81 | G58: 36 | H58: 55 | I58: 33
C59: None (0) | D59: 52 | E59: 38 | F59: 109 | G59: 49 | H59: 91 | I59: 55
C60: No data | D60: 0 | E60: 0 | F60: 0 | G60: 0 | H60: 0 | I60: 0
B61: 12. Nervousness | C61: Severe (3) | D61: 8 | E61: 6 | F61: 14 | G61: 6 | H61: 7 | I61: 4 | J61: 0.01013
C62: Moderate (2) | D62: 28 | E62: 20 | F62: 31 | G62: 14 | H62: 15 | I62: 9
C63: Mild (1) | D63: 51 | E63: 37 | F63: 75 | G63: 34 | H63: 57 | I63: 35
C64: None (0) | D64: 51 | E64: 37 | F64: 102 | G64: 46 | H64: 86 | I64: 52
C65: No data | D65: 0 | E65: 0 | F65: 0 | G65: 0 | H65: 0 | I65: 0
B66: 13. Anxiety | C66: Severe (3) | D66: 14 | E66: 10 | F66: 18 | G66: 8 | H66: 8 | I66: 5 | J66: 0.00013
C67: Moderate (2) | D67: 23 | E67: 17 | F67: 28 | G67: 13 | H67: 14 | I67: 8
C68: Mild (1) | D68: 57 | E68: 41 | F68: 79 | G68: 36 | H68: 52 | I68: 32
C69: None (0) | D69: 44 | E69: 32 | F69: 97 | G69: 44 | H69: 91 | I69: 55
C70: No data | D70: 0 | E70: 0 | F70: 0 | G70: 0 | H70: 0 | I70: 0
A71: 6. Headaches | B71: 14. Headaches | C71: Severe (3) | D71: 9 | E71: =D71/1.38 -> 7 | F71: 6 | G71: =F71/2.22 -> 3 | H71: 6 | I71: =H71/1.65 -> 4 | J71: 0.00639
C72: Moderate (2) | D72: 18 | E72: 13 | F72: 29 | G72: 13 | H72: 16 | I72: 10
C73: Mild (1) | D73: 45 | E73: 33 | F73: 64 | G73: 29 | H73: 33 | I73: 20
C74: None (0) | D74: 66 | E74: 48 | F74: 122 | G74: 55 | H74: 110 | I74: 67
C75: No data | D75: 0 | E75: 0 | F75: 1 | G75: 0 | H75: 0 | I75: 0
A76: 7. Depression | B76: 15. Worry about self | C76: Severe (3) | D76: 11 | E76: 8 | F76: 15 | G76: 7 | H76: 11 | I76: 7 | J76: 0.0105
C77: Moderate (2) | D77: 27 | E77: 20 | F77: 24 | G77: 11 | H77: 14 | I77: 8
C78: Mild (1) | D78: 50 | E78: 36 | F78: 84 | G78: 38 | H78: 55 | I78: 33
C79: None (0) | D79: 50 | E79: 36 | F79: 99 | G79: 45 | H79: 85 | I79: 52
C80: No data | D80: 0 | E80: 0 | F80: 0 | G80: 0 | H80: 0 | I80: 0
B81: 16. Depression | C81: Severe (3) | D81: 14 | E81: 10 | F81: 16 | G81: 7 | H81: 8 | I81: 5 | J81: <0.0001
C82: Moderate (2) | D82: 28 | E82: 20 | F82: 26 | G82: 12 | H82: 15 | I82: 9
C83: Mild (1) | D83: 51 | E83: 37 | F83: 82 | G83: 37 | H83: 40 | I83: 24
C84: None (0) | D84: 45 | E84: 33 | F84: 98 | G84: 44 | H84: 102 | I84: 62
C85: No data | D85: 0 | E85: 0 | F85: 0 | G85: 0 | H85: 0 | I85: 0
B86: 17. Loss of volition | C86: Severe (3) | D86: 12 | E86: 9 | F86: 13 | G86: 6 | H86: 6 | I86: 4 | J86: 2e-05
C87: Moderate (2) | D87: 30 | E87: 22 | F87: 28 | G87: 13 | H87: 14 | I87: 8
C88: Mild (1) | D88: 41 | E88: 30 | F88: 74 | G88: 33 | H88: 41 | I88: 25
C89: None (0) | D89: 54 | E89: 39 | F89: 107 | G89: 48 | H89: 104 | I89: 63
C90: No data | D90: 1 | E90: 1 | F90: 0 | G90: 0 | H90: 0 | I90: 0
A91: 8. Sleep disturbance | B91: 18. Insomnia | C91: Severe (3) | D91: 15 | E91: 11 | F91: 18 | G91: 8 | H91: 12 | I91: 7 | J91: 0.00905
C92: Moderate (2) | D92: 23 | E92: 17 | F92: 28 | G92: 13 | H92: 18 | I92: 11
C93: Mild (1) | D93: 44 | E93: 32 | F93: 65 | G93: 29 | H93: 39 | I93: 24
C94: None (0) | D94: 55 | E94: 40 | F94: 110 | G94: 50 | H94: 96 | I94: 58
C95: No data | D95: 1 | E95: 1 | F95: 1 | G95: 0 | H95: 0 | I95: 0
B96: 19. Wakefulness | C96: Severe (3) | D96: 21 | E96: 15 | F96: 14 | G96: 6 | H96: 6 | I96: 4 | J96: <0.0001
C97: Moderate (2) | D97: 31 | E97: 22 | F97: 26 | G97: 12 | H97: 21 | I97: 13
C98: Mild (1) | D98: 41 | E98: 30 | F98: 78 | G98: 35 | H98: 43 | I98: 26
C99: None (0) | D99: 45 | E99: 33 | F99: 103 | G99: 46 | H99: 95 | I99: 58
C100: No data | D100: 0 | E100: 0 | F100: 1 | G100: 0 | H100: 0 | I100: 0
A101: 9. Sensory disturbance | B101: 20. Numbness | C101: Severe (3) | D101: 8 | E101: 6 | F101: 17 | G101: 8 | H101: 8 | I101: 5 | J101: 0.56971
C102: Moderate (2) | D102: 11 | E102: 8 | F102: 18 | G102: 8 | H102: 8 | I102: 5
C103: Mild (1) | D103: 33 | E103: 24 | F103: 52 | G103: 23 | H103: 43 | I103: 26
C104: None (0) | D104: 86 | E104: 62 | F104: 134 | G104: 60 | H104: 106 | I104: 64
C105: No data | D105: 0 | E105: 0 | F105: 1 | G105: 0 | H105: 0 | I105: 0
B106: 21. Dull senses of hands and feet | C106: Severe (3) | D106: 2 | E106: 1 | F106: 5 | G106: 2 | H106: 3 | I106: 2 | J106: 0.42407
C107: Moderate (2) | D107: 4 | E107: 3 | F107: 11 | G107: 5 | H107: 7 | I107: 4
C108: Mild (1) | D108: 20 | E108: 14 | F108: 37 | G108: 17 | H108: 23 | I108: 14
C109: None (0) | D109: 112 | E109: 81 | F109: 168 | G109: 76 | H109: 132 | I109: 80
C110: No data | D110: 0 | E110: 0 | F110: 1 | G110: 0 | H110: 0 | I110: 0
A111: 10. Palpitations | B111: 22. Palpitations | C111: Severe (3) | D111: 3 | E111: 2 | F111: 4 | G111: 2 | H111: 3 | I111: 2 | J111: 0.30444
C112: Moderate (2) | D112: 11 | E112: 8 | F112: 19 | G112: 9 | H112: 9 | I112: 5
C113: Mild (1) | D113: 42 | E113: 30 | F113: 54 | G113: 24 | H113: 41 | I113: 25
C114: None (0) | D114: 82 | E114: 59 | F114: 144 | G114: 65 | H114: 112 | I114: 68
C115: No data | D115: 0 | E115: 0 | F115: 1 | G115: 0 | H115: 0 | I115: 0
A116: 11. Dizziness | B116: 23. Vertigo | C116: Severe (3) | D116: 6 | E116: 4 | F116: 5 | G116: 2 | H116: 1 | I116: 1 | J116: 0.12598
C117: Moderate (2) | D117: 9 | E117: 7 | F117: 17 | G117: 8 | H117: 8 | I117: 5
C118: Mild (1) | D118: 35 | E118: 25 | F118: 51 | G118: 23 | H118: 35 | I118: 21
C119: None (0) | D119: 88 | E119: 64 | F119: 148 | G119: 67 | H119: 121 | I119: 73
C120: No data | D120: 0 | E120: 0 | F120: 1 | G120: 0 | H120: 0 | I120: 0
B121: 24. Nausea | C121: Severe (3) | D121: 3 | E121: 2 | F121: 4 | G121: 2 | H121: 0 | I121: 0 | J121: 0.00135
C122: Moderate (2) | D122: 3 | E122: 2 | F122: 12 | G122: 5 | H122: 3 | I122: 2
C123: Mild (1) | D123: 25 | E123: 18 | F123: 25 | G123: 11 | H123: 10 | I123: 6
C124: None (0) | D124: 107 | E124: 78 | F124: 180 | G124: 81 | H124: 152 | I124: 92
C125: No data | D125: 0 | E125: 0 | F125: 1 | G125: 0 | H125: 0 | I125: 0
A126: 12. Formication | B126: 25. Formication | C126: Severe (3) | D126: 1 | E126: 1 | F126: 4 | G126: 2 | H126: 1 | I126: 1 | J126: 0.55459
C127: Moderate (2) | D127: 3 | E127: 2 | F127: 6 | G127: 3 | H127: 5 | I127: 3
C128: Mild (1) | D128: 8 | E128: 6 | F128: 17 | G128: 8 | H128: 11 | I128: 7
C129: None (0) | D129: 126 | E129: 91 | F129: 194 | G129: 87 | H129: 148 | I129: 90
C130: No data | D130: 0 | E130: 0 | F130: 1 | G130: 0 | H130: 0 | I130: 0
A131: 13. Cognitive disturbance | B131: 26. Forgetfulness | C131: Severe (3) | D131: 5 | E131: 4 | F131: 10 | G131: 5 | H131: 1 | I131: 1 | J131: 0.07455
C132: Moderate (2) | D132: 9 | E132: 7 | F132: 23 | G132: 10 | H132: 23 | I132: 14
C133: Mild (1) | D133: 52 | E133: 38 | F133: 96 | G133: 43 | H133: 75 | I133: 45
C134: None (0) | D134: 72 | E134: 52 | F134: 93 | G134: 42 | H134: 66 | I134: 40
C135: No data | D135: 0 | E135: =D135/1.38 -> 0 | F135: 0 | G135: =F135/2.22 -> 0 | H135: 0 | I135: =H135/1.65 -> 0
B136: 27. Poor memory | C136: Severe (3) | D136: 7 | E136: 5 | F136: 6 | G136: 3 | H136: 2 | I136: 1 | J136: 0.24083
C137: Moderate (2) | D137: 7 | E137: 5 | F137: 18 | G137: 8 | H137: 17 | I137: 10
C138: Mild (1) | D138: 39 | E138: 28 | F138: 83 | G138: 37 | H138: 59 | I138: 36
C139: None (0) | D139: 85 | E139: 62 | F139: 114 | G139: 51 | H139: 87 | I139: 53
C140: No data | D140: 0 | E140: 0 | F140: 1 | G140: 0 | H140: 0 | I140: 0
A141: 14. Skin symptom | B141: 28. Wrinkled skin | C141: Severe (3) | D141: 2 | E141: 1 | F141: 6 | G141: 3 | H141: 9 | I141: 5 | J141: 0.99716
C142: Moderate (2) | D142: 15 | E142: 11 | F142: 11 | G142: 5 | H142: 14 | I142: 8
C143: Mild (1) | D143: 47 | E143: 34 | F143: 90 | G143: 41 | H143: 52 | I143: 32
C144: None (0) | D144: 74 | E144: 54 | F144: 114 | G144: 51 | H144: 90 | I144: 55
C145: No data | D145: 0 | E145: 0 | F145: 1 | G145: 0 | H145: 0 | I145: 0
A146: 15. Hair symptom | B146: 29. Loss of hair | C146: Severe (3) | D146: 6 | E146: 4 | F146: 9 | G146: 4 | H146: 11 | I146: 7 | J146: 0.40982
C147: Moderate (2) | D147: 10 | E147: 7 | F147: 17 | G147: 8 | H147: 11 | I147: 7
C148: Mild (1) | D148: 37 | E148: 27 | F148: 73 | G148: 33 | H148: 54 | I148: 33
C149: None (0) | D149: 85 | E149: 62 | F149: 122 | G149: 55 | H149: 89 | I149: 54
C150: No data | D150: 0 | E150: 0 | F150: 1 | G150: 0 | H150: 0 | I150: 0
A151: 16. Urinary symptoms | B151: 30. Urinary frequency | C151: Severe (3) | D151: 4 | E151: 3 | F151: 11 | G151: 5 | H151: 5 | I151: 3 | J151: 0.69393
C152: Moderate (2) | D152: 14 | E152: 10 | F152: 14 | G152: 6 | H152: 11 | I152: 7
C153: Mild (1) | D153: 36 | E153: 26 | F153: 59 | G153: 27 | H153: 42 | I153: 25
C154: None (0) | D154: 84 | E154: 61 | F154: 137 | G154: 62 | H154: 107 | I154: 65
C155: No data | D155: 0 | E155: 0 | F155: 1 | G155: 0 | H155: 0 | I155: 0
B156: 31. Urinary urgency | C156: Severe (3) | D156: 1 | E156: 1 | F156: 4 | G156: 2 | H156: 1 | I156: 1 | J156: 0.13379
C157: Moderate (2) | D157: 2 | E157: 1 | F157: 8 | G157: 4 | H157: 0 | I157: 0
C158: Mild (1) | D158: 11 | E158: 8 | F158: 21 | G158: 9 | H158: 14 | I158: 8
C159: None (0) | D159: 124 | E159: 90 | F159: 188 | G159: 85 | H159: 150 | I159: 91
C160: No data | D160: 0 | E160: 0 | F160: 1 | G160: 0 | H160: 0 | I160: 0
B161: 32. Incontinence | C161: Severe (3) | D161: 2 | E161: 1 | F161: 2 | G161: 1 | H161: 3 | I161: 2 | J161: 0.09455
C162: Moderate (2) | D162: 6 | E162: 4 | F162: 12 | G162: 5 | H162: 4 | I162: 2
C163: Mild (1) | D163: 12 | E163: 9 | F163: 34 | G163: 15 | H163: 16 | I163: 10
C164: None (0) | D164: 118 | E164: 86 | F164: 173 | G164: 78 | H164: 142 | I164: 86
C165: No data | D165: 0 | E165: 0 | F165: 1 | G165: 0 | H165: 0 | I165: 0
A166: 17. Vaginal symptoms | B166: 33. Vaginal discharge | C166: Severe (3) | D166: 0 | E166: 0 | F166: 3 | G166: 1 | H166: 0 | I166: 0 | J166: 0.34057
C167: Moderate (2) | D167: 1 | E167: 1 | F167: 2 | G167: 1 | H167: 3 | I167: 2
C168: Mild (1) | D168: 11 | E168: 8 | F168: 23 | G168: 10 | H168: 20 | I168: 12
C169: None (0) | D169: 126 | E169: 91 | F169: 193 | G169: 87 | H169: 142 | I169: 86
C170: No data | D170: 0 | E170: 0 | F170: 1 | G170: 0 | H170: 0 | I170: 0
B171: 34. Vaginal dryness | C171: Severe (3) | D171: 7 | E171: 5 | F171: 5 | G171: 2 | H171: 1 | I171: 1 | J171: 0.62783
C172: Moderate (2) | D172: 0 | E172: 0 | F172: 12 | G172: 5 | H172: 8 | I172: 5
C173: Mild (1) | D173: 21 | E173: 15 | F173: 30 | G173: 14 | H173: 20 | I173: 12
C174: None (0) | D174: 110 | E174: 80 | F174: 174 | G174: 78 | H174: 136 | I174: 82
C175: No data | D175: 0 | E175: 0 | F175: 1 | G175: 0 | H175: 0 | I175: 0
B176: 35. Vaginal itching | C176: Severe (3) | D176: 0 | E176: 0 | F176: 2 | G176: 1 | H176: 0 | I176: 0 | J176: 0.29929
C177: Moderate (2) | D177: 0 | E177: 0 | F177: 3 | G177: 1 | H177: 2 | I177: 1
C178: Mild (1) | D178: 8 | E178: 6 | F178: 18 | G178: 8 | H178: 13 | I178: 8
C179: None (0) | D179: 130 | E179: 94 | F179: 198 | G179: 89 | H179: 150 | I179: 91
C180: No data | D180: 0 | E180: 0 | F180: 1 | G180: 0 | H180: 0 | I180: 0
B181: 36. Dyspareunia | C181: Severe (3) | D181: 6 | E181: 4 | F181: 5 | G181: 2 | H181: 3 | I181: 2 | J181: 0.56424
C182: Moderate (2) | D182: 4 | E182: 3 | F182: 10 | G182: 5 | H182: 9 | I182: 5
C183: Mild (1) | D183: 13 | E183: 9 | F183: 21 | G183: 9 | H183: 22 | I183: 13
C184: None (0) | D184: 115 | E184: 83 | F184: 185 | G184: 83 | H184: 131 | I184: 79
C185: No data | D185: 0 | E185: 0 | F185: 1 | G185: 0 | H185: 0 | I185: 0
A186: 18. Throat symptom | B186: 37. Dysphagia | C186: Severe (3) | D186: 2 | E186: 1 | F186: 3 | G186: 1 | H186: 5 | I186: 3 | J186: 0.29837
C187: Moderate (2) | D187: 5 | E187: 4 | F187: 12 | G187: 5 | H187: 9 | I187: 5
C188: Mild (1) | D188: 22 | E188: 16 | F188: 41 | G188: 18 | H188: 33 | I188: 20
C189: None (0) | D189: 109 | E189: 79 | F189: 165 | G189: 74 | H189: 118 | I189: 72
C190: No data | D190: 0 | E190: 0 | F190: 1 | G190: 0 | H190: 0 | I190: 0
A191: 19. Eye symptoms | B191: 38. Eye pain | C191: Severe (3) | D191: 1 | E191: 1 | F191: 3 | G191: 1 | H191: 9 | I191: 5 | J191: 0.22463
C192: Moderate (2) | D192: 5 | E192: 4 | F192: 16 | G192: 7 | H192: 6 | I192: 4
C193: Mild (1) | D193: 19 | E193: 14 | F193: 34 | G193: 15 | H193: 27 | I193: 16
C194: None (0) | D194: 113 | E194: 82 | F194: 169 | G194: 76 | H194: 123 | I194: 75
C195: No data | D195: 0 | E195: 0 | F195: 0 | G195: 0 | H195: 0 | I195: 0
B196: 39. Eye dryness | C196: Severe (3) | D196: 5 | E196: 4 | F196: 6 | G196: 3 | H196: 9 | I196: 5 | J196: 0.80707
C197: Moderate (2) | D197: 9 | E197: 7 | F197: 24 | G197: 11 | H197: 13 | I197: 8
C198: Mild (1) | D198: 39 | E198: 28 | F198: 61 | G198: 27 | H198: 42 | I198: 25
C199: None (0) | D199: 85 | E199: =D199/1.38 -> 62 | F199: 130 | G199: =F199/2.22 -> 59 | H199: 101 | I199: =H199/1.65 -> 61
C200: No data | D200: 0 | E200: 0 | F200: 1 | G200: 0 | H200: 0 | I200: 0
A201: 20. Abdominal symptom | B201: 40. Abdominal distension | C201: Severe (3) | D201: 3 | E201: 2 | F201: 7 | G201: 3 | H201: 6 | I201: 4 | J201: 0.08297
... 10 more rows
